bitfinex-derivatives/quotes_SOLF0:USTF0_20250609
["timestamp","ask_amount","ask_price","bid_price","bid_amount"]
[1749505163812,6.31581353,159.41,159.38,6.2704]
[1749505164107,0.04631353,159.41,159.37,12.24881744]
[1749505164716,0.04631353,159.41,159.4,6.2698]
[1749505165017,0.04631353,159.41,159.38,12.20084111]
[1749505165315,0.04631353,159.41,159.4,6.2698]
[1749505165611,0.04631353,159.41,159.38,12.20084111]
[1749505166416,0.04631353,159.41,159.39,6.27]
[1749505167412,0.04631353,159.41,159.4,6.2698]
[1749505167914,0.04631353,159.41,159.4,18.47064111]
[1749505169316,0.04631353,159.41,159.4,58.45064111]
[1749505169922,0.04631353,159.41,159.4,46.2498]
[1749505172016,0.04631353,159.41,159.4,58.45064111]
[1749505177024,0.04631353,159.41,159.4,52.18084111]
[1749505177225,0.04631353,159.41,159.4,39.98]
[1749505178924,6.31571353,159.41,159.4,39.98]
[1749505179130,6.31571353,159.41,159.37,0.04797633]
[1749505179131,0.04631353,159.41,159.37,6.31877633]
[1749505179325,6.2705,159.39,159.37,0.04797633]
[1749505179727,0.04631353,159.41,159.37,0.04797633]
[1749505180026,7.59163145,159.4,159.37,0.04797633]
[1749505180226,5.22568077,159.4,159.37,6.31877633]
[1749505180732,6.2702,159.39,159.37,0.04797633]
[1749505181332,5.22568077,159.4,159.37,0.04797633]
[1749505181631,5.22708096,159.4,159.37,0.04797633]
[1749505182029,11.49718096,159.4,159.37,6.31887633]
[1749505182229,6.2701,159.4,159.37,6.31887633]
[1749505182525,6.2704,159.39,159.37,0.04797633]
[1749505183935,6.2706,159.38,159.37,0.04797633]
[1749505184136,5.22748796,159.4,159.37,0.04797633]
[1749505184940,0.04631353,159.41,159.37,12.24881744]
[1749505185538,0.04631353,159.41,159.38,6.2705]
[1749505185739,0.04631353,159.41,159.37,12.24881744]
[1749505187334,0.04631353,159.41,159.4,6.2698]
[1749505188034,5.26577412,159.41,159.37,0.04797633]
[1749505188340,7.57227506,159.4,159.37,0.04797633]
[1749505188540,6.2706,159.38,159.37,0.04797633]
[1749505188837,8.62305909,159.38,159.37,0.04797633]
[1749505189138,13.84937931,159.38,159.37,0.04797633]
[1749505189348,11.49692022,159.38,159.37,0.04797633]
[1749505189636,5.22632022,159.38,159.37,0.04797633]
[1749505189837,7.57880555,159.38,159.37,0.04797633]
[1749505190034,13.84940555,159.38,159.37,0.04797633]
[1749505190234,7.57880555,159.38,159.37,0.04797633]
[1749505190836,11.49692022,159.38,159.37,0.04797633]
[1749505191239,13.85881884,159.38,159.37,0.04797633]
[1749505191441,2.36189862,159.38,159.37,0.04797633]
[1749505191736,6.2703,159.39,159.37,0.04797633]
[1749505191934,2.23321353,159.41,159.37,0.04797633]
[1749505192134,6.2706,159.39,159.37,0.04797633]
[1749505192528,6.2706,159.38,159.37,0.04797633]
[1749505192731,17.42929165,159.38,159.22,11.26103765]
[1749505192931,12.21096007,159.36,159.26,12.21096007]
[1749505193134,6.2741,159.3,159.26,6.2752]
[1749505193333,14.40606007,159.35,159.25,12.21096007]
[1749505193538,6.274,159.3,159.27,6.2746]
[1749505193739,6.31685231,159.3,159.27,6.31603214]
[1749505193929,6.31685231,159.3,159.27,0.04143214]
[1749505194539,6.2742,159.29,159.27,0.04143214]
[1749505194741,0.04285231,159.3,159.27,0.04143214]
[1749505195235,6.2746,159.28,159.27,0.04143214]
[1749505195538,0.04285231,159.3,159.27,0.04143214]
[1749505196240,6.2746,159.28,159.27,0.04143214]
[1749505197440,0.04285231,159.3,159.27,12.25239221]
[1749505197642,0.04285231,159.3,159.29,12.21096007]
[1749505198437,0.04285231,159.3,159.29,18.48516007]
[1749505198639,7.29551343,159.37,159.28,39.88]
[1749505198836,2.1006,159.37,159.33,6.2725]
[1749505199034,2.34394366,159.36,159.33,6.2725]
[1749505199240,8.61544366,159.36,159.33,6.2725]
[1749505199439,6.2715,159.36,159.33,6.2725]
[1749505199735,0.04516039,159.36,159.33,0.0405408]
[1749505200237,0.04516039,159.36,159.34,39.88]
[1749505200442,6.039e-05,159.36,159.34,52.09096007]
[1749505200736,6.039e-05,159.36,159.35,18.48276007]
[1749505201044,4.3065,159.45,159.35,12.21096007]
[1749505201343,8.4634,159.45,159.35,12.21096007]
[1749505201536,8.4634,159.45,159.4,12.21096007]
[1749505201843,8.4634,159.45,159.3,24.75786007]
[1749505201844,0.04198015,159.44,159.27,11.26103765]
[1749505202143,12.20507194,159.36,159.27,6.2747]
[1749505202336,4.5764415,159.35,159.25,12.20507194]
[1749505202536,2.2478,159.35,159.27,12.20507194]
[1749505202836,6.273,159.32,159.27,12.20507194]
[1749505203035,0.04104608,159.33,159.29,0.04656181]
[1749505203439,0.04104608,159.33,159.3,39.88]
[1749505204037,6.2734,159.31,159.3,39.88]
[1749505204236,0.04104608,159.33,159.3,39.88]
[1749505205234,6.2733,159.32,159.3,39.88]
[1749505206142,6.2734,159.31,159.3,39.88]
[1749505211142,0.04104608,159.33,159.3,52.08940516]
[1749505211343,0.04104608,159.33,159.3,39.88]
[1749505211549,0.04104608,159.33,159.32,7.3224206]
[1749505211845,2.32664541,159.37,159.32,7.3224206]
[1749505212048,7.94053833,159.43,159.36,7.3224206]
[1749505212249,6.2702,159.4,159.37,39.72]
[1749505212451,6.2702,159.4,159.37,47.0424206]
[1749505212946,6.31569352,159.4,159.37,47.08994282]
[1749505213147,6.2703,159.39,159.37,47.08994282]
[1749505213348,6.2703,159.39,159.37,39.76752222]
[1749505213949,0.04549352,159.4,159.37,39.76752222]
[1749505214354,6.31549352,159.4,159.37,39.76752222]
[1749505214650,0.04549352,159.4,159.37,51.96268576]
[1749505215151,0.04549352,159.4,159.37,39.76752222]
[1749505215351,0.04549352,159.4,159.38,12.19516354]
[1749505216654,0.04549352,159.4,159.37,39.76752222]
[1749505216946,0.04549352,159.4,159.38,12.19516354]
[1749505217352,0.04549352,159.4,159.38,18.46546354]
[1749505218754,0.04549352,159.4,159.38,6.2703]
[1749505219149,6.31529352,159.4,159.38,6.2703]
[1749505220052,0.04549352,159.4,159.38,6.2703]
[1749505221355,0.04549352,159.4,159.37,39.76752222]
[1749505221356,6.31529352,159.4,159.37,46.03842222]
[1749505222155,6.31529352,159.4,159.37,39.76752222]
[1749505222757,6.31529352,159.4,159.38,39.7]
[1749505223058,6.31529352,159.4,159.39,39.7]
[1749505223252,8.05316658,159.46,159.39,39.7]
[1749505223452,7.59710501,159.45,159.4,12.19516354]
[1749505223653,6.268,159.45,159.42,6.2688]
[1749505224350,6.2683,159.44,159.42,6.31281282]
[1749505224550,6.2683,159.44,159.42,0.04401282]
[1749505224951,6.2686,159.43,159.42,0.04401282]
[1749505225147,0.04658151,159.45,159.42,0.04401282]
[1749505226367,6.2686,159.43,159.42,0.04401282]
[1749505230458,12.19516354,159.43,159.31,361.4]
[1749505230663,2.36159821,159.42,159.33,12.19516354]
[1749505230866,9.70529728,159.42,159.33,18.46776354]
[1749505231065,2.0958,159.42,159.33,12.19516354]
[1749505231266,6.2715,159.36,159.33,12.19516354]
[1749505231565,6.2715,159.36,159.33,18.46746354]
[1749505231762,6.31923382,159.36,159.33,18.50859592]
[1749505232160,6.2718,159.35,159.33,12.23629592]
[1749505232665,6.2718,159.35,159.34,39.7]
[1749505232864,0.04773382,159.36,159.33,12.23629592]
[1749505233162,0.04773382,159.36,159.34,39.7]
[1749505233367,0.04773382,159.36,159.33,0.04113238]
[1749505233568,0.04773382,159.36,159.34,39.7]
[1749505233774,0.04773382,159.36,159.33,0.04113238]
[1749505234067,0.04773382,159.36,159.34,39.7]
[1749505235057,6.2722,159.34,159.33,0.04113238]
[1749505235261,6.2722,159.34,159.33,39.74113238]
[1749505235663,6.2722,159.34,159.33,0.04113238]
[1749505235966,7.37034808,159.36,159.28,47.02261426]
[1749505236159,7.32261426,159.36,159.29,39.7]
[1749505236360,7.32261426,159.36,159.3,39.7]
[1749505236659,6.2736,159.31,159.3,39.7]
[1749505246178,6.2738,159.3,159.29,0.04384484]
[1749505246980,6.2754,159.26,159.25,39.54]
[1749505247476,6.2748,159.28,159.25,39.54]
[1749505247876,6.31926194,159.28,159.25,39.58050908]
[1749505248077,6.31926194,159.28,159.25,45.85620908]
[1749505248378,0.04446194,159.28,159.25,39.58050908]
[1749505249076,0.04446194,159.28,159.25,0.04050908]
[1749505249277,7.36999036,159.28,159.21,39.54]
[1749505249481,0.04446194,159.28,159.21,39.54]
[1749505249683,7.32552842,159.27,159.21,39.54]
[1749505249881,6.2768,159.23,159.21,39.54]
[1749505250082,7.32552842,159.27,159.21,39.54]
[1749505250279,0.04617127,159.26,159.22,0.0480072]
[1749505250676,6.2769,159.23,159.22,0.0480072]
[1749505251586,0.04617127,159.26,159.22,0.0480072]
[1749505251884,6.2765,159.23,159.22,0.0480072]
[1749505257891,6.2778,159.2,159.17,39.56]
[1749505258694,7.32552842,159.21,159.14,7.32552842]
[1749505258986,0.0480453,159.19,159.16,0.04498022]
[1749505259192,6.2792,159.17,159.16,0.04498022]
[1749505261290,6.2809,159.12,159.09,39.56]
[1749505261489,7.32552842,159.17,159.1,13.60712842]
[1749505261684,7.32552842,159.17,159.09,39.56]
[1749505261993,6.2811,159.12,159.09,39.56]
[1749505262193,7.32552842,159.16,159.09,39.56]
[1749505262394,0.04488165,159.14,159.11,0.04245766]
[1749505262591,6.2811,159.12,159.11,0.04245766]
[1749505263389,0.04488165,159.14,159.11,0.04245766]
[1749505263994,6.2809,159.12,159.11,0.04245766]
[1749505273201,6.2809,159.12,158.96,81.89942842]
[1749505273202,7.32552842,159.13,159.02,41.5413]
[1749505273407,7.32552842,159.13,159.06,7.32552842]
[1749505273797,7.32552842,159.13,159.04,7.32552842]
[1749505273993,7.32552842,159.13,159.02,41.5413]
[1749505274200,0.0482507,159.1,159.06,0.03821693]
[1749505274604,6.2828,159.08,159.06,0.03821693]
[1749505274809,0.0482507,159.1,159.06,0.03821693]
[1749505275507,6.2829,159.07,159.06,0.03821693]
[1749505276399,0.0482507,159.1,159.06,0.03821693]
[1749505277002,6.2828,159.08,159.06,0.03821693]
[1749505277207,0.0482507,159.1,159.06,0.03821693]
[1749505278204,2.0856,159.17,159.07,39.42]
[1749505278399,8.07569341,159.16,159.09,8.07569341]
[1749505278596,6.2818,159.1,159.07,49.59689341]
[1749505279404,6.2818,159.1,159.07,47.54114105]
[1749505279405,6.32255058,159.1,159.07,47.54114105]
[1749505279603,6.2822,159.09,159.07,47.54114105]
[1749505279804,0.04075058,159.1,159.07,53.82394105]
[1749505280604,6.32265058,159.1,159.07,47.54114105]
[1749505281897,6.32265058,159.1,159.07,39.46544764]
[1749505282095,6.32265058,159.1,159.07,47.54114105]
[1749505282493,6.2822,159.09,159.07,47.54114105]
[1749505283598,6.2825,159.08,159.07,39.46544764]
[1749505284203,6.2825,159.08,159.07,0.04544764]
[1749505285206,6.2823,159.09,159.07,0.04544764]
[1749505285407,18.18201719,159.18,159.08,47.49569341]
[1749505285607,5.1520969,159.17,159.14,8.07198989]
[1749505285803,7.71840484,159.23,159.13,39.42]
[1749505285804,5.15110052,159.2,159.13,39.42]
[1749505286003,13.22212556,159.22,159.14,51.85272504]
[1749505286307,8.07102504,159.2,159.14,2.1644]
[1749505286609,5.15110052,159.19,159.16,0.04361614]
[1749505287210,5.15110052,159.18,159.16,0.04361614]
[1749505287507,6.2789,159.17,159.16,0.04361614]
[1749505288408,6.2807,159.13,159.1,2.1973]
[1749505288601,5.15110052,159.16,159.1,2.1973]
[1749505288807,5.15110052,159.16,159.09,39.42]
[1749505289202,5.15110052,159.15,159.09,39.42]
[1749505289404,0.04532514,159.14,159.12,8.07703905]
[1749505289605,13.8459304,159.23,159.13,8.07070662]
[1749505289805,8.07070662,159.19,159.12,6.2807]
[1749505290104,5.18462395,159.18,159.11,8.07070662]
[1749505290304,5.18462395,159.17,159.11,8.07480176]
[1749505290509,5.18462395,159.18,159.11,8.07480176]
[1749505290810,5.77522378,159.2,159.11,8.07480176]
[1749505290811,0.04459005,159.16,159.13,0.0404658]
[1749505291711,6.2797,159.15,159.13,0.0404658]
[1749505292313,0.04459005,159.16,159.13,0.0404658]
[1749505292314,0.04459005,159.16,159.14,8.07125925]
[1749505292513,5.19455517,159.19,159.15,2.1952]
[1749505292806,5.19455517,159.18,159.16,8.06996932]
[1749505293012,6.2789,159.18,159.16,8.06996932]
[1749505293213,5.19455517,159.2,159.16,8.06996932]
[1749505293413,5.19455517,159.2,159.14,39.42]
[1749505293414,5.19455517,159.19,159.14,39.42]
[1749505293612,5.23567992,159.18,159.15,0.03964531]
[1749505293807,6.2796,159.16,159.15,0.03964531]
[1749505294006,5.19455517,159.16,159.06,2.1952]
[1749505294210,5.19455517,159.15,159.12,8.07385303]
[1749505294414,5.77522378,159.19,159.12,8.07385303]
[1749505294708,5.20223174,159.18,159.14,8.07385303]
[1749505294911,5.20223174,159.17,159.14,8.07385303]
[1749505295113,5.20223174,159.16,159.14,8.12147125]
[1749505295313,0.04307679,159.17,159.14,8.12147125]
[1749505295515,5.20446847,159.16,159.14,8.12147125]
[1749505295714,0.04307679,159.17,159.14,8.12147125]
[1749505295911,11.4840625,159.16,159.14,8.12147125]
[1749505296111,6.2796,159.16,159.14,8.12147125]
[1749505296810,5.20696921,159.15,159.14,8.12147125]
[1749505297309,5.20696921,159.15,159.14,0.04761822]
[1749505297616,11.48676921,159.15,159.14,0.04761822]
[1749505308417,19.56062224,159.15,159.14,1.822e-05]
[1749505308619,19.56617185,159.15,159.14,1.822e-05]
[1749505308822,11.48676921,159.15,159.14,1.822e-05]
[1749505309118,19.56586356,159.15,159.14,1.822e-05]
[1749505309328,25.34134035,159.15,159.14,1.822e-05]
[1749505310215,25.34154035,159.15,159.06,361.84]
[1749505310420,8.07934736,159.12,159.05,39.2]
[1749505310621,5.20696921,159.11,159.05,39.2]
[1749505310822,6.2832,159.07,159.05,39.2]
[1749505311219,8.07934736,159.1,159.05,39.2]
[1749505311424,0.04481664,159.08,159.05,39.2]
[1749505311621,5.24713586,159.07,159.05,39.2]
[1749505311821,0.04481664,159.08,159.05,39.2]
[1749505312024,11.53053979,159.07,159.05,39.2]
[1749505312326,6.2832,159.07,159.05,39.2]
[1749505312523,11.50543899,159.07,159.05,39.2]
[1749505312826,6.2832,159.07,159.05,39.2]
[1749505313126,6.2833,159.06,159.05,39.2]
[1749505313921,6.2833,159.06,159.04,0.04801336]
[1749505313922,6.2837,159.05,159.04,0.04801336]
[1749505314722,6.2849,159.02,159.01,39.22]
[1749505318130,0.04021468,159.03,159.01,39.22]
[1749505318330,0.04021468,159.03,159.02,8.08288883]
[1749505318528,87.82158859,159.02,158.83,8.08802955]
[1749505318726,25.59762583,159.01,158.91,8.08802955]
[1749505318921,5.19230099,159.0,158.93,8.08802955]
[1749505319121,5.19230099,158.99,158.93,8.08802955]
[1749505319327,5.19230099,159.0,158.93,8.08802955]
[1749505319531,0.04367966,158.98,158.93,8.08802955]
[1749505319722,6.33017966,158.98,158.92,47.30802955]
[1749505319927,0.04367966,158.98,158.92,47.30802955]
[1749505320323,0.04367966,158.98,158.96,8.08802955]
[1749505320527,0.04367966,158.98,158.97,39.22]
[1749505322729,5.18820783,159.05,158.97,39.22]
[1749505322730,11.47190783,159.05,158.97,39.22]
[1749505323034,5.18820783,159.04,158.97,39.22]
[1749505323235,5.18820783,159.04,158.98,6.2861]
[1749505323437,5.18820783,159.04,158.98,8.08802955]
[1749505323638,7.38924522,159.07,159.0,8.08802955]
[1749505323830,0.04338268,159.05,159.02,0.04367966]
[1749505324033,0.04338268,159.05,159.03,39.24]
[1749505325229,0.04338268,159.05,159.04,6.2841]
[1749505325738,0.04338268,159.05,159.04,45.5241]
[1749505326132,0.04338268,159.05,159.04,39.24]
[1749505327645,8.12782363,159.05,159.02,0.04367966]
[1749505327934,8.12782363,159.05,159.03,39.24]
[1749505328335,8.12782363,159.05,159.02,39.28367966]
[1749505328541,8.08444095,159.03,159.02,39.28367966]
[1749505328837,14.36894095,159.03,159.02,39.28367966]
[1749505329236,14.36894095,159.03,159.02,0.04367966]
[1749505329436,6.2845,159.03,159.02,0.04367966]
[1749505329635,0.04338268,159.05,159.02,0.04367966]
[1749505331034,0.04338268,159.05,159.03,6.2844]
[1749505331636,0.04338268,159.05,159.02,6.32837966]
[1749505331831,0.04338268,159.05,159.02,0.04367966]
[1749505332336,0.04338268,159.05,159.02,6.32827966]
[1749505333034,6.32738268,159.05,159.02,6.32827966]
[1749505333235,0.04338268,159.05,159.02,0.04367966]
[1749505333431,6.2843,159.04,159.02,0.04367966]
[1749505333745,0.04338268,159.05,159.02,0.04367966]
[1749505334630,6.2845,159.03,159.02,0.04367966]
[1749505337337,6.2845,159.03,158.94,8.09243034]
[1749505337338,8.09243034,159.03,158.94,8.09243034]
[1749505337536,8.09273625,159.01,158.95,39.1]
[1749505337741,6.2872,158.97,158.95,39.1]
[1749505337935,2.269,159.02,158.95,47.19273625]
[1749505338336,2.269,159.02,158.97,6.2867]
[1749505338337,0.04525598,159.0,158.97,6.2867]
[1749505339042,0.04525598,159.0,158.97,8.09273625]
[1749505339238,0.04525598,159.0,158.99,8.09273625]
[1749505339444,0.04525598,159.0,158.99,8.08710449]
[1749505339943,5.17000488,159.06,158.99,8.08710449]
[1749505340145,7.47000381,159.08,159.02,8.08710449]
[1749505340539,13.75280381,159.08,159.04,6.2839]
[1749505340736,2.3028,159.08,159.04,6.2839]
[1749505340941,2.34723595,159.08,159.04,0.04472416]
[1749505341645,2.34723595,159.08,159.05,6.2835]
[1749505341842,0.04443595,159.08,159.04,0.04472416]
[1749505342550,0.04443595,159.08,159.06,6.2833]
[1749505342843,0.04443595,159.08,159.04,0.04472416]
[1749505343239,0.04443595,159.08,159.07,6.2829]
[1749505343444,0.04443595,159.08,159.07,14.37000449]
[1749505343646,0.04443595,159.08,159.07,6.2829]
[1749505343852,0.04443595,159.08,159.07,14.37000449]
[1749505344760,13.26951098,159.16,159.07,8.08710449]
[1749505345050,5.18240649,159.15,159.09,8.08710449]
[1749505345246,5.18240649,159.16,159.11,8.08710449]
[1749505345551,5.18240649,159.17,159.1,39.1]
[1749505345747,0.04114848,159.15,159.14,14.36730449]
[1749505346147,0.04114848,159.15,159.14,8.08710449]
[1749505346348,0.04114848,159.15,159.13,6.2804]
[1749505346549,0.04114848,159.15,159.13,8.08710449]
[1749505347255,0.04114848,159.15,159.13,14.36770449]
[1749505348557,0.04114848,159.15,159.14,6.2802]
[1749505349348,0.04114848,159.15,159.14,8.08710449]
[1749505351559,6.32094848,159.15,159.14,8.08710449]
[1749505351761,0.04114848,159.15,159.14,8.08710449]
[1749505352563,6.32094848,159.15,159.14,8.08710449]
[1749505353063,0.04114848,159.15,159.14,8.08710449]
[1749505353959,6.2791,159.17,159.14,6.2802]
[1749505354163,6.2791,159.17,159.16,8.08710449]
[1749505354562,2.1639,159.24,159.16,8.08710449]
[1749505354563,6.2786,159.19,159.16,8.08710449]
[1749505354963,6.32665423,159.19,159.16,8.1295858]
[1749505355364,6.2786,159.18,159.16,8.1295858]
[1749505358767,6.279,159.17,159.16,0.04248131]
[1749505359763,0.04805423,159.19,159.16,0.04248131]
[1749505359764,6.2787,159.18,159.16,0.04248131]
[1749505360265,6.279,159.17,159.16,0.04248131]
[1749505361869,6.279,159.17,159.16,39.12248131]
[1749505364265,6.2786,159.18,159.16,39.12248131]
[1749505365765,6.279,159.17,159.16,39.12248131]
[1749505372177,6.279,159.17,159.16,0.04248131]
[1749505379987,6.279,159.17,159.16,8.131e-05]
[1749505380188,11.48790068,159.17,159.16,8.131e-05]
[1749505380978,6.279,159.17,159.16,8.131e-05]
[1749505383287,11.49118617,159.17,159.16,8.131e-05]
[1749505383890,6.279,159.17,159.16,8.131e-05]
[1749505384189,5.21218617,159.17,159.16,8.131e-05]
[1749505384388,5.21218617,159.18,159.16,8.131e-05]
[1749505384688,0.04805423,159.19,159.16,6.27948131]
[1749505384689,5.21218617,159.17,159.16,6.27948131]
[1749505384892,5.21218617,159.18,159.16,6.27948131]
[1749505385088,5.21218617,159.17,159.16,6.27948131]
[1749505385890,5.21218617,159.18,159.16,6.27948131]
[1749505386084,5.21218617,159.17,159.16,6.27948131]
[1749505386284,0.04805423,159.19,159.16,6.27948131]
[1749505386285,0.04805423,159.19,159.17,6.279]
[1749505386480,5.23516751,159.18,159.17,6.279]
[1749505386684,5.23516751,159.18,159.16,8.131e-05]
[1749505386886,5.23516751,159.17,159.16,6.27928131]
[1749505387086,5.23530757,159.17,159.16,6.27928131]
[1749505387289,5.24772367,159.17,159.16,6.27928131]
[1749505387793,0.04805423,159.19,159.16,6.27928131]
[1749505387984,5.24761842,159.18,159.17,6.279]
[1749505388189,5.24761842,159.18,159.17,14.34959101]
[1749505388991,0.04805423,159.19,159.17,8.07059101]
[1749505389196,6.2776,159.21,159.19,8.07059101]
[1749505389398,2.30626791,159.2,159.19,8.07059101]
[1749505390196,8.58406791,159.2,159.19,8.07059101]
[1749505391092,8.58523837,159.2,159.19,8.07059101]
[1749505391293,8.58524308,159.2,159.19,8.07059101]
[1749505391492,6.2778,159.2,159.19,8.07059101]
[1749505391693,8.58524308,159.2,159.19,8.07059101]
[1749505392497,6.2778,159.2,159.19,8.07059101]
[1749505392791,8.58448314,159.2,159.19,8.07059101]
[1749505393497,8.58458857,159.2,159.19,8.07059101]
[1749505393687,8.58459297,159.2,159.19,8.07059101]
[1749505394097,6.2782,159.19,159.18,39.0]
[1749505394297,6.2782,159.19,159.18,47.07059101]
[1749505394497,0.04437814,159.21,159.18,47.07059101]
[1749505394697,8.58977272,159.2,159.18,47.07059101]
[1749505394897,6.278,159.2,159.18,47.07059101]
[1749505395799,6.32197814,159.21,159.18,53.34919101]
[1749505395998,2.3089933,159.2,159.18,39.0]
[1749505396198,0.04437814,159.21,159.19,8.07059101]
[1749505396398,6.2778,159.2,159.19,8.07059101]
[1749505396599,8.58678907,159.2,159.19,8.07059101]
[1749505397192,6.2782,159.19,159.18,47.07059101]
[1749505397498,8.58718907,159.19,159.18,47.07059101]
[1749505397693,6.2782,159.19,159.18,39.0]
[1749505397999,8.58710836,159.19,159.18,38.84]
[1749505398294,8.58711511,159.19,159.17,8.07059101]
[1749505398603,6.2782,159.19,159.18,38.84]
[1749505398796,8.58686814,159.19,159.18,38.84]
[1749505399392,6.2786,159.18,159.17,8.07059101]
[1749505399598,6.2786,159.18,159.17,46.91059101]
[1749505399800,6.279,159.17,159.16,8.131e-05]
[1749505399997,6.279,159.17,159.16,46.91067232]
[1749505400198,5.90846556,159.21,159.16,46.91067232]
[1749505400395,2.30653789,159.2,159.16,46.91067232]
[1749505400595,6.2788,159.18,159.17,8.07059101]
[1749505400790,8.58456094,159.18,159.17,8.07059101]
[1749505401100,13.81492884,159.18,159.17,8.07059101]
[1749505401298,13.81494716,159.18,159.17,8.07059101]
[1749505401501,13.81484016,159.18,159.17,8.07154629]
[1749505401797,13.81484016,159.18,159.16,38.84008131]
[1749505401998,13.81504016,159.17,159.16,46.9116276]
[1749505402694,13.8150765,159.17,159.16,46.91168886]
[1749505403201,13.81508047,159.17,159.16,46.91196036]
[1749505403501,13.81520744,159.17,159.16,46.91247331]
[1749505403695,13.81520744,159.17,159.16,46.91270528]
[1749505403892,13.81510934,159.17,159.16,46.91270528]
[1749505404100,13.81510934,159.17,159.16,38.84008131]
[1749505404395,11.5093679,159.17,159.16,46.91270528]
[1749505405301,11.5093679,159.17,159.16,38.84008131]
[1749505405501,11.5093679,159.17,159.16,46.91270528]
[1749505406103,11.5093679,159.17,159.16,38.84008131]
[1749505406805,11.5093679,159.17,159.16,8.131e-05]
[1749505410006,17.37345532,159.17,159.16,8.131e-05]
[1749505410303,6.2827,159.08,159.06,8.07409827]
[1749505411006,6.283,159.07,159.06,8.07409827]
[1749505411512,0.0439865,159.08,159.06,8.07409827]
[1749505411710,6.283,159.07,159.06,8.07409827]
[1749505413117,6.2834,159.06,159.05,38.90276531]
[1749505415313,6.2834,159.06,159.05,0.04276531]
[1749505417310,6.2834,159.06,159.05,6.531e-05]
[1749505419315,8.07409827,159.06,158.85,19.91451172]
[1749505419620,8.07409827,159.03,158.95,8.07409827]
[1749505419921,6.2874,158.96,158.94,38.86]
[1749505420116,8.07409827,158.99,158.88,361.96]
[1749505420312,0.04473708,158.95,158.92,0.04642758]
[1749505420510,8.12173848,158.95,158.92,0.04545817]
[1749505420817,4.3773,158.94,158.85,6.2917]
[1749505421010,4.3773,158.94,158.86,8.07409827]
[1749505421710,0.04131092,158.92,158.88,0.04111552]
[1749505422513,6.2901,158.89,158.88,0.04111552]
[1749505424016,6.2917,158.86,158.83,38.86]
[1749505424213,8.07409827,158.92,158.83,46.93409827]
[1749505424411,8.07409827,158.92,158.84,8.07409827]
[1749505425013,6.2902,158.89,158.86,8.07409827]
[1749505425212,0.042017,158.9,158.86,8.07409827]
[1749505425520,0.042017,158.9,158.88,8.07409827]
[1749505425723,0.042017,158.9,158.88,46.77409827]
[1749505425923,38.86,158.97,158.88,54.84819654]
[1749505426222,6.2874,158.96,158.92,14.36299827]
[1749505426619,6.2874,158.96,158.92,8.07409827]
[1749505427018,6.33341432,158.96,158.92,8.12066269]
[1749505427219,0.04601432,158.96,158.92,8.12066269]
[1749505427416,0.04601432,158.96,158.93,8.09429105]
[1749505427919,0.04601432,158.96,158.92,0.04656442]
[1749505428220,0.04601432,158.96,158.93,14.38249105]
[1749505428422,0.04601432,158.96,158.93,53.10249105]
[1749505429022,0.04601432,158.96,158.94,6.2878]
[1749505429522,0.04601432,158.96,158.93,45.0084]
[1749505430321,0.04601432,158.96,158.94,6.2881]
[1749505430523,0.04601432,158.96,158.94,8.09429105]
[1749505431819,8.09429105,159.09,158.95,8.09429105]
[1749505432019,8.09429105,159.09,159.01,8.09429105]
[1749505432215,6.2833,159.07,159.02,38.72]
[1749505432715,0.04401779,159.06,159.03,0.04582091]
[1749505433426,6.32741779,159.06,159.03,0.04582091]
[1749505433623,0.04401779,159.06,159.04,8.09429105]
[1749505433828,14.37469105,159.14,159.08,6.2823]
[1749505434025,8.09429105,159.14,159.07,8.09429105]
[1749505434427,8.09429105,159.12,159.05,14.37769105]
[1749505434623,8.09429105,159.12,159.05,8.09429105]
[1749505434829,0.04767889,159.1,159.07,0.04748127]
[1749505435422,6.2829,159.08,159.07,0.04748127]
[1749505437132,6.2829,159.08,159.07,8.127e-05]
[1749505439423,11.38845781,159.08,159.07,8.127e-05]
[1749505439635,6.2829,159.08,159.07,8.127e-05]
[1749505440131,19.48393348,159.08,159.07,8.127e-05]
[1749505440331,19.48397209,159.08,159.07,8.127e-05]
[1749505440728,11.38968104,159.08,159.07,8.127e-05]
[1749505440928,6.2829,159.08,159.07,8.127e-05]
[1749505443433,14.3695583,159.08,159.07,8.127e-05]
[1749505443638,11.39398799,159.08,159.07,8.127e-05]
[1749505443841,19.48064629,159.08,159.07,8.127e-05]
[1749505448236,11.39398799,159.08,159.07,8.127e-05]
[1749505453039,17.16909217,159.08,159.07,8.127e-05]
[1749505454538,17.25025507,159.08,159.07,8.127e-05]
[1749505454937,17.25026005,159.08,159.07,8.127e-05]
[1749505457342,11.42524425,159.08,159.07,8.127e-05]